fUSD/lending_fUSD_20240412
["ID","MTS","AMOUNT","RATE_DAILY","PERIOD"]
[322277259,1712928649846,-537.75678544,0.00046575,31]
[322277260,1712928649855,-500.0,0.00046575,31]
[322277261,1712928649865,-157.91,0.00046575,31]
[322277262,1712928649874,-500.0,0.00046575,31]
[322277263,1712928649883,-500.0,0.00046575,31]
[322277264,1712928649893,-500.0,0.00046575,31]
[322277265,1712928649902,-500.0,0.00046575,31]
[322277266,1712928649913,-500.0,0.00046575,31]
[322277267,1712928649922,-306.56608902,0.00046575,31]
[322277268,1712928649932,-500.0,0.00046575,31]
[322277269,1712928649942,-500.0,0.00046575,31]
[322277270,1712928649952,-509.21936118,0.00046575,31]
[322277271,1712928649963,-327.56329387,0.00046575,31]
[322277272,1712928649974,-500.0,0.00046575,31]
[322277273,1712928649986,-500.0,0.00046575,31]
[322277274,1712928649996,-500.0,0.00046575,31]
[322277275,1712928650007,-636.11013834,0.00046575,31]
[322277276,1712928650018,-423.0022667,0.00046575,31]
[322277277,1712928650028,-500.0,0.00046575,31]
[322277278,1712928650039,-500.0,0.00046575,31]
[322277279,1712928650050,-500.0,0.00046575,30]
[322277280,1712928650059,-505.7,0.00046575,31]
[322277281,1712928650070,-500.0,0.00046575,31]
[322277282,1712928650081,-500.0,0.00046575,31]
[322277283,1712928650092,-500.0,0.00046575,31]
[322277284,1712928650104,-500.0,0.00046575,31]
[322277285,1712928650115,-500.0,0.00046575,31]
[322277286,1712928650125,-500.0,0.00046575,31]
[322277287,1712928650136,-500.0,0.00046575,31]
[322277288,1712928650149,-500.0,0.00046575,31]
[322277289,1712928650348,-500.0,0.00046575,31]
[322277290,1712928650359,-500.0,0.00046575,31]
[322277291,1712928650370,-500.0,0.00046575,31]
[322277292,1712928650380,-500.0,0.00046575,31]
[322277293,1712928650391,-500.0,0.00046575,31]
[322277294,1712928650402,-500.0,0.00046575,31]
[322277295,1712928650412,-500.0,0.00046575,31]
[322277296,1712928650422,-638.88,0.00046575,31]
[322277297,1712928650432,-500.0,0.00046575,31]
[322277298,1712928650442,-500.0,0.00046575,31]
[322277299,1712928650452,-500.0,0.00046575,31]
[322277300,1712928650462,-500.0,0.00046575,31]
[322277301,1712928650472,-500.0,0.00046575,31]
[322277302,1712928650482,-500.0,0.00046575,31]
[322277303,1712928650492,-500.0,0.00046575,31]
[322277304,1712928650502,-500.0,0.00046575,31]
[322277305,1712928650513,-500.0,0.00046575,31]
[322277306,1712928650522,-500.0,0.00046575,31]
[322277307,1712928650533,-500.0,0.00046575,31]
[322277308,1712928650543,-150.0,0.00046575,31]
[322277309,1712928650554,-616.70564378,0.00046575,31]
[322277310,1712928650564,-500.0,0.00046575,31]
[322277311,1712928650573,-500.0,0.00046575,31]
[322277312,1712928650583,-271.43651174,0.00046575,31]
[322277313,1712928650592,-500.0,0.00046575,31]
[322277314,1712928650601,-500.0,0.00046575,31]
[322277315,1712928650611,-500.0,0.00046575,31]
[322277316,1712928650621,-500.0,0.00046575,31]
[322277317,1712928650630,-500.0,0.00046575,31]
[322277318,1712928650640,-500.0,0.00046575,31]
[322277319,1712928650649,-721.39,0.00046575,31]
[322277320,1712928650659,-506.51055647,0.00046575,31]
[322277321,1712928650669,-500.0,0.00046575,31]
[322277322,1712928650678,-500.0,0.00046575,31]
[322277323,1712928650688,-561.69,0.00046575,31]
[322277324,1712928650699,-500.0,0.00046575,31]
[322277325,1712928650709,-500.0,0.00046575,31]
[322277326,1712928650719,-500.0,0.00046575,31]
[322277327,1712928650729,-500.0,0.00046575,31]
[322277328,1712928650739,-515.09,0.00046575,31]
[322277329,1712928650749,-500.0,0.00046575,31]
[322277330,1712928650758,-500.0,0.00046575,31]
[322277331,1712928650768,-500.0,0.00046575,31]
[322277332,1712928650777,-500.0,0.00046575,31]
[322277333,1712928650787,-507.60484537,0.00046575,31]
[322277334,1712928650797,-500.0,0.00046575,31]
[322277335,1712928650807,-732.99,0.00046575,31]
[322277336,1712928650817,-234.38313004,0.00046575,31]
[322277337,1712928650827,-500.0,0.00046575,31]
[322277338,1712928650837,-408.62795077,0.00046575,31]
[322277339,1712928650847,-500.0,0.00046575,31]
[322277340,1712928650857,-500.0,0.00046575,31]
[322277341,1712928650867,-500.0,0.00046575,31]
[322277342,1712928650877,-527.82,0.00046575,31]
[322277343,1712928650888,-500.0,0.00046575,31]
[322277344,1712928650897,-500.0,0.00046575,7]
[322277345,1712928650908,-500.0,0.00046575,31]
[322277346,1712928650918,-500.0,0.00046575,31]
[322277347,1712928650949,-500.0,0.00046575,31]
[322277348,1712928650977,-500.0,0.00046575,31]
[322277349,1712928650987,-500.0,0.00046575,31]
[322277350,1712928650998,-500.0,0.00046575,31]
[322277351,1712928651007,-500.0,0.00046575,31]
[322277352,1712928651018,-779.87,0.00046575,31]
[322277353,1712928651028,-500.0,0.00046575,31]
[322277354,1712928651037,-500.0,0.00046575,31]
[322277355,1712928651047,-500.0,0.00046575,31]
[322277356,1712928651057,-500.0,0.00046575,31]
[322277357,1712928651067,-690.8,0.00046575,31]
[322277358,1712928651077,-500.0,0.00046575,31]
[322277359,1712928651086,-500.0,0.00046575,31]
[322277360,1712928651098,-500.0,0.00046575,31]
[322277361,1712928651108,-500.0,0.00046575,31]
[322277362,1712928651117,-500.0,0.00046575,31]
[322277363,1712928651127,-500.0,0.00046575,31]
[322277364,1712928651136,-500.0,0.00046575,31]
[322277365,1712928651145,-500.0,0.00046575,31]
[322277366,1712928651155,-500.0,0.00046575,31]
[322277367,1712928651165,-500.0,0.00046575,31]
[322277368,1712928651176,-500.0,0.00046575,31]
[322277369,1712928651186,-500.0,0.00046575,31]
[322277370,1712928651195,-500.0,0.00046575,31]
[322277371,1712928651205,-500.0,0.00046575,31]
[322277372,1712928651215,-1031.44,0.00046575,31]
[322277373,1712928651225,-500.0,0.00046575,31]
[322277374,1712928651235,-500.0,0.00046575,31]
[322277375,1712928651245,-500.0,0.00046575,31]
[322277376,1712928651256,-500.0,0.00046575,31]
[322277377,1712928651266,-500.0,0.00046575,31]
[322277378,1712928651277,-500.0,0.00046575,31]
[322277379,1712928651290,-500.0,0.00046575,31]
[322277380,1712928651302,-500.0,0.00046575,31]
[322277381,1712928651313,-5417.04,0.00046575,31]
[322277382,1712928651324,-620.93,0.00046575,31]
[322277383,1712928651335,-500.0,0.00046575,31]
[322277384,1712928651346,-565.09,0.00046575,31]
[322277385,1712928651356,-1333.22,0.00046575,31]
[322277386,1712928651367,-500.0,0.00046575,31]
[322277387,1712928651377,-500.0,0.00046575,31]
[322277388,1712928651387,-478.92427023,0.00046575,31]
[322277389,1712928651397,-500.0,0.00046575,31]
[322277390,1712928651407,-500.0,0.00046575,31]
[322277391,1712928651417,-500.0,0.00046575,31]
[322277392,1712928651427,-500.0,0.00046575,31]
[322277393,1712928651437,-500.0,0.00046575,31]
[322277394,1712928651446,-500.0,0.00046575,31]
[322277395,1712928651456,-500.0,0.00046575,31]
[322277396,1712928651475,-500.0,0.00046575,31]
[322277397,1712928651485,-500.0,0.00046575,31]
[322277398,1712928651495,-500.0,0.00046575,5]
[322277399,1712928651505,-500.0,0.00046575,31]
[322277400,1712928651518,-297.50717666,0.00046575,31]
[322277401,1712928651527,-2332.43,0.00046575,31]
[322277402,1712928651537,-500.0,0.00046575,21]
[322277403,1712928651550,-500.0,0.00046575,31]
[322277404,1712928651560,-504.33469538,0.00046575,31]
[322277405,1712928651569,-500.0,0.00046575,31]
[322277406,1712928651583,-500.0,0.00046575,31]
[322277407,1712928651596,-500.0,0.00046575,31]
[322277408,1712928651606,-500.0,0.00046575,31]
[322277409,1712928651615,-778.4,0.00046575,31]
[322277410,1712928651625,-500.0,0.00046575,3]
[322277411,1712928651635,-500.0,0.00046575,31]
[322277412,1712928651644,-500.0,0.00046575,31]
[322277413,1712928651654,-500.0,0.00046575,31]
[322277414,1712928651663,-500.0,0.00046575,31]
[322277415,1712928651673,-578.33,0.00046575,31]
[322277416,1712928651683,-500.0,0.00046575,31]
[322277417,1712928651692,-500.0,0.00046575,31]
[322277418,1712928651702,-505.84,0.00046575,31]
[322277419,1712928651712,-680.01,0.00046575,31]
[322277420,1712928651721,-500.0,0.00046575,31]
[322277421,1712928651731,-500.0,0.00046575,31]
[322277422,1712928651740,-924.33,0.00046575,31]
[322277423,1712928651749,-500.0,0.00046575,31]
[322277424,1712928651759,-500.0,0.00046575,31]
[322277425,1712928651768,-500.0,0.00046575,31]
[322277426,1712928651778,-500.0,0.00046575,31]
[322277427,1712928651788,-644.85,0.00046575,31]
[322277428,1712928651797,-500.0,0.00046575,31]
[322277429,1712928651807,-500.0,0.00046575,31]
[322277430,1712928651816,-500.0,0.00046575,31]
[322277431,1712928651826,-500.0,0.00046575,31]
[322277432,1712928651835,-500.0,0.00046575,31]
[322277433,1712928651845,-500.0,0.00046575,31]
[322277434,1712928651854,-500.0,0.00046575,31]
[322277435,1712928651864,-694.4,0.00046575,31]
[322277436,1712928651874,-500.0,0.00046575,31]
[322277437,1712928651884,-500.0,0.00046575,31]
[322277438,1712928651893,-500.0,0.00046575,31]
[322277439,1712928651903,-200.58968481,0.00046575,31]
[322277440,1712928651912,-500.0,0.00046575,31]
[322277441,1712928651921,-500.0,0.00046575,31]
[322277442,1712928651931,-2844.15,0.00046575,31]
[322277443,1712928651941,-476.24442736,0.00046575,31]
[322277444,1712928651950,-500.0,0.00046575,31]
[322277445,1712928651959,-500.0,0.00046575,31]
[322277446,1712928651969,-500.0,0.00046575,31]
[322277447,1712928651979,-500.0,0.00046575,31]
[322277448,1712928651988,-500.0,0.00046575,31]
[322277449,1712928651997,-500.0,0.00046575,31]
[322277450,1712928652007,-500.0,0.00046575,31]
[322277451,1712928652018,-617.83,0.00046575,31]
[322277452,1712928652027,-1793.66,0.00046575,31]
[322277453,1712928652037,-500.0,0.00046575,31]
[322277454,1712928652046,-500.0,0.00046575,31]
[322277455,1712928652056,-500.0,0.00046575,31]
[322277456,1712928652065,-500.0,0.00046575,31]
[322277457,1712928652074,-500.0,0.00046575,31]
[322277458,1712928652085,-1284.4,0.00046575,31]
[322277459,1712928652095,-500.0,0.00046575,31]
[322277460,1712928652104,-1456.68,0.00046575,31]
[322277461,1712928652114,-500.0,0.00046575,31]
[322277462,1712928652123,-500.0,0.00046575,31]
[322277463,1712928652132,-563.72514772,0.00046575,31]
[322277464,1712928652185,-67.17485228,0.00046575,31]
[322277465,1712928652195,-1077.47,0.00046575,31]
[322277466,1712928652204,-500.0,0.00046575,31]
[322277467,1712928652214,-2240.84,0.00046575,31]
[322277468,1712928652223,-786.86,0.00046575,31]
[322277469,1712928652233,-554.95489126,0.00046575,31]
[322277470,1712928652245,-346.42728627,0.00046575,31]
[322277476,1712928903776,62000.0,0.0002,7]
[322277477,1712928903812,18000.0,0.0002,7]
[322277566,1712929832643,-616.06308208,0.00020896,2]
[322277567,1712929832698,-1595.54863215,0.00020896,2]
[322277568,1712929832708,-330.0908,0.000209,2]
[322277569,1712929832719,-161.89,0.00027397,2]
[322277570,1712929832729,-219.69,0.00027397,2]
[322277571,1712929832739,-159.5,0.00027397,2]
[322277572,1712929832748,-1227.75645734,0.00027998,2]
[322277573,1712929832758,-305.43143604,0.00027999,2]
[322277574,1712929832768,-20180.30698704,0.00028,2]
[322277575,1712929832778,-4582.68437558,0.00029,2]
[322277576,1712929832788,-172.36954469,0.0003,2]
[322277577,1712929832798,-525.0,0.00030137,2]
[322277578,1712929832808,-525.0,0.00031507,2]
[322277579,1712929832817,-499.99,0.00031507,2]
[322277580,1712929832827,-150.99,0.00031507,2]
[322277581,1712929832837,-611.07740058,0.000326,20]
[322277582,1712929832847,-2261.65966609,0.00032871,4]
[322277583,1712929833076,-351.899999,0.00032871,4]
[322277584,1712929833107,-3238.7356494,0.00032871,4]
[322277587,1712929833118,-300.25007496,0.00032871,4]
[322277589,1712929833132,-292.40890089,0.00032871,4]
[322277592,1712929833155,-19739.51902928,0.00032871,4]
[322277595,1712929833167,-530.0,0.00032871,4]
[322277599,1712929833178,-577.08360759,0.00032871,4]
[322277606,1712929833207,-2925.0,0.00032871,4]
[322277608,1712929833219,-700.0,0.00032871,4]
[322277610,1712929833232,-386.0997268,0.00032871,4]
[322277612,1712929833244,-21.7869036,0.00032871,4]
[322277614,1712929833253,-525.0,0.00032876,2]
[322277616,1712929833263,-219.69,0.00033165,2]
[322277618,1712929833273,-154.92,0.000333,2]
[322277620,1712929833283,-270.86,0.000335,2]
[322277622,1712929833293,-270.86,0.000335,2]
[322277624,1712929833303,-270.86,0.000335,2]
[322277626,1712929833312,-270.86,0.000335,2]
[322277628,1712929833322,-270.86,0.000335,2]
[322277630,1712929833331,-270.86,0.000335,2]
[322277632,1712929833341,-270.86,0.000335,2]
[322277634,1712929833350,-270.86,0.000335,2]
[322277636,1712929833359,-270.86,0.000335,2]
[322277638,1712929833369,-270.86,0.000335,2]
[322277640,1712929833378,-270.86,0.000335,2]
[322277642,1712929833387,-270.86,0.000335,2]
[322277644,1712929833397,-270.86,0.000335,2]
[322277646,1712929833409,-270.86,0.000335,2]
[322277648,1712929833418,-270.86,0.000335,2]
[322277650,1712929833427,-270.86,0.000335,2]
[322277652,1712929833436,-270.86,0.000335,2]
[322277654,1712929833445,-270.86,0.000335,2]
[322277656,1712929833455,-270.86,0.000335,2]
[322277658,1712929833465,-270.86,0.000335,2]
[322277660,1712929833474,-156.35,0.00033963,2]
[322277662,1712929833483,-1001.56,0.000341,2]
[322277664,1712929833493,-525.0,0.00034246,2]
[322277666,1712929833503,-150.0,0.00034548,10]
[322277668,1712929833512,-1001.56,0.0003507,2]
[322277670,1712929833522,-11756.63309641,0.00035611,2]
[322277672,1712929833535,-12143.36690359,0.00035611,2]
[322277674,1712929833544,-525.0,0.00035616,2]
[322277676,1712929833554,-4875.44014378,0.00035638,2]
[322277678,1712929833566,-851.99998,0.00035638,2]
[322277687,1712929837826,-200.23539209,0.00034764,2]
[322277688,1712929837836,-443.28147591,0.00035638,2]
[322277691,1712929838246,-490.959078,0.00035638,2]
[322277693,1712929838259,-569.22932231,0.00035638,2]
[322277695,1712929838269,-228.72,0.00035664,2]
[322277697,1712929838278,-150.91,0.0003577,2]
[322277699,1712929838288,-386.95821489,0.00035776,4]
[322277701,1712929838297,-53.9984628,0.00035794,2]
[322277703,1712929838310,-529.12011047,0.00035794,2]
[322277706,1712929838322,-2233.97142673,0.00035794,2]
[322277708,1712929838332,-1000.0,0.00035841,2]
[322277710,1712929838341,-151.67,0.00035859,2]
[322277712,1712929838350,-275.85,0.00035879,2]
[322277714,1712929838359,-269.72,0.00035917,2]
[322277716,1712929838368,-250.0,0.00036004,115]
[322277718,1712929838377,-1001.56,0.0003604,2]
[322277720,1712929838386,-333.29,0.00036069,15]
[322277721,1712929838395,-156.35,0.00036227,2]
[322277724,1712929838406,-154.92,0.000369,3]
[322277726,1712929838416,-154.92,0.000369,3]
[322277727,1712929838425,-525.0,0.00036986,7]
[322277729,1712929838433,-1001.56,0.0003701,2]
[322277731,1712929838443,-270.86,0.000371,3]
[322277734,1712929838452,-270.86,0.000371,3]
[322277736,1712929838462,-270.86,0.000371,3]
[322277738,1712929838471,-270.86,0.000371,3]
[322277740,1712929838480,-270.86,0.000371,3]
[322277742,1712929838489,-270.86,0.000371,3]
[322277743,1712929838499,-270.86,0.000371,3]
[322277745,1712929838508,-270.86,0.000371,3]
[322277747,1712929838517,-270.86,0.000371,3]
[322277749,1712929838527,-270.86,0.000371,3]
[322277751,1712929838536,-270.86,0.000371,3]
[322277753,1712929838546,-270.86,0.000371,3]
[322277756,1712929838556,-270.86,0.000371,3]
[322277758,1712929838565,-270.86,0.000371,3]
[322277760,1712929838574,-270.86,0.000371,3]
[322277762,1712929838583,-270.86,0.000371,3]
[322277763,1712929838593,-154.99471212,0.00037458,7]
[322277765,1712929838602,-1001.56,0.0003798,2]
[322277767,1712929838611,-310.0,0.00038235,4]
[322277769,1712929838620,-1138.33436527,0.00038236,4]
[322277771,1712929838629,-292.49849219,0.00038237,4]
[322277773,1712929838639,-525.0,0.00038356,7]
[322277775,1712929838651,-161.89,0.00038356,2]
[322277777,1712929838663,-156.35,0.00038491,2]
[322277779,1712929838672,-333.29,0.00038808,15]
[322277781,1712929838682,-219.69,0.00038933,2]
[322277783,1712929838692,-570.84932054,0.0003895,2]
[322277818,1712929839005,-430.71067946,0.0003895,2]
[322277820,1712929839015,-2100.0,0.00038995,7]
[322277822,1712929839025,-150.0,0.00038995,7]
[322277824,1712929839034,-180.0,0.00039432,2]
[322277826,1712929839044,-515.7799,0.00039597,2]
[322277828,1712929839053,-3992.13722958,0.00039597,2]
[322277830,1712929839065,-2834.65714824,0.00039597,2]
[322277832,1712929839073,-332.00333169,0.00039696,2]
[322277834,1712929839083,-111.14059265,0.00039697,2]
[322277836,1712929839095,-384.2290936,0.00039697,2]
[322277839,1712929839107,-600.5,0.00039697,2]
[322277841,1712929839119,-294.13031375,0.00039697,2]
[322277843,1712929839128,-2277.0,0.00039697,2]
[322277845,1712929839138,-460.0,0.00039697,2]
[322277847,1712929839147,-967.0,0.00039697,2]
[322277849,1712929839159,-1228.0,0.00039697,2]
[322277851,1712929839167,-540.0,0.00039697,2]
[322277853,1712929839177,-1260.0,0.00039697,2]
[322277855,1712929839186,-298.995,0.00039697,2]
[322277857,1712929839195,-608.0,0.00039697,2]
[322277858,1712929839205,-435.7,0.00039697,2]
[322277861,1712929839215,-1140.0,0.00039697,2]
[322277862,1712929839224,-398.0,0.00039697,2]
[322277865,1712929839233,-3041.0,0.00039697,2]
[322277867,1712929839243,-1471.0,0.00039697,2]
[322277868,1712929839252,-1636.0,0.00039697,2]
[322277870,1712929839262,-2438.0,0.00039697,2]
[322277873,1712929839271,-152.0,0.00039697,2]
[322277874,1712929839281,-208.0,0.00039697,2]
[322277876,1712929839290,-160.279,0.00039697,2]
[322277878,1712929839299,-1998.70477035,0.00039697,2]
[322277881,1712929839311,-3599.00222965,0.00039697,2]
[322277883,1712929839321,-1205.015,0.00039697,2]
[322277885,1712929839330,-152.79,0.00039697,2]
[322277887,1712929839339,-156.192,0.00039697,2]
[322277889,1712929839348,-1187.00077035,0.00039726,10]
[322277891,1712929839360,-343.47,0.00039726,10]
[322277893,1712929839372,-1899.52922965,0.00039726,10]
[322277895,1712929839382,-2832.80249487,0.00039726,10]
[322277982,1712929839988,-1167.19750513,0.00039726,10]
[322277984,1712929839997,-3138.15685144,0.00039898,7]
[322277990,1712929840046,-430.43831725,0.00039898,7]
[322277997,1712929840107,-3736.21353131,0.00039898,7]
[322277999,1712929840117,-989.79429865,0.00039898,2]
[322278005,1712929840166,-963.95640135,0.00039898,2]
[322278007,1712929840176,-10281.4005,0.00039898,7]
[322278009,1712929840185,-612.21309865,0.000399,9]
[322278014,1712929840222,-17.03325581,0.000399,9]
[322278016,1712929840231,-320.91343542,0.000399,2]
[322278018,1712929840240,-1001.56,0.0003992,2]
[322278020,1712929840250,-171.5,0.00039988,2]
[322278022,1712929840259,-173401.49330876,0.00039998,30]
[322278025,1712929840280,-256.89893274,0.00039998,30]
[322278032,1712929840339,-82224.20470672,0.00039998,30]
[322278034,1712929840348,-22126.04814087,0.0004,4]
[322278036,1712929840358,-193.0576741,0.0004,2]
[322278038,1712929840367,-1000.0,0.00040321,2]
[322278040,1712929840376,-154.92,0.000405,4]
[322278042,1712929840385,-154.92,0.000405,4]
[322278044,1712929840395,-270.86,0.000406,4]
[322278046,1712929840404,-270.86,0.000406,4]
[322278048,1712929840415,-270.86,0.000406,4]
[322278050,1712929840425,-270.86,0.000406,4]
[322278064,1712929840614,-270.86,0.000406,4]
[322278067,1712929840625,-270.86,0.000406,4]
[322278070,1712929840635,-270.86,0.000406,4]
[322278072,1712929840647,-270.86,0.000406,4]
[322278075,1712929840660,-270.86,0.000406,4]
[322278077,1712929840669,-6826.79437779,0.0004072,2]
[322278079,1712929840678,-156.35,0.00040755,2]
[322278081,1712929840687,-1521.623948,0.0004089,2]
[322278083,1712929840696,-157.0,0.00041096,2]
[322278085,1712929840706,-629.24635446,0.00041231,10]
[322278087,1712929840717,-333.29,0.00041548,15]
[322278089,1712929840727,-6826.79437779,0.00041842,2]
[322278091,1712929840737,-716.66440951,0.00041916,4]
[322278093,1712929840746,-156.08416384,0.0004235,30]
[322278095,1712929840756,-629.24635446,0.00042561,10]
[322278097,1712929840765,-1228.0,0.00042697,2]
[322278099,1712929840775,-540.0,0.00042697,2]
[322278101,1712929840784,-1206.17591512,0.00042697,2]
[322278103,1712929840797,-53.82408488,0.00042697,2]
[322278105,1712929840806,-6826.79437779,0.00042965,2]
[322278107,1712929840816,-729.24202231,0.00042965,2]
[322278109,1712929840825,-156.35,0.00043019,2]
[322278111,1712929840836,-159.5,0.00043053,2]
[322278113,1712929840846,-200.0,0.00043064,15]
[322278115,1712929840856,-500.0,0.00043064,20]
[322278117,1712929840866,-629.24635446,0.00043892,11]
[322278119,1712929840876,-150.0,0.00044,44]
[322278121,1712929840886,-6826.79437779,0.00044087,2]
[322278123,1712929840896,-729.24202231,0.00044087,2]
[322278125,1712929840907,-154.92,0.000441,4]
[322278127,1712929840918,-154.92,0.000441,4]
[322278129,1712929840927,-270.86,0.000442,5]
[322278131,1712929840938,-270.86,0.000442,5]
[322278133,1712929840948,-270.86,0.000442,5]
[322278135,1712929840958,-270.86,0.000442,5]
[322278137,1712929840969,-270.86,0.000442,5]
[322278140,1712929840979,-270.86,0.000442,5]
[322278142,1712929840990,-270.86,0.000442,5]
[322278144,1712929840999,-270.86,0.000442,5]
[322278145,1712929841009,-270.86,0.000442,5]
[322278148,1712929841018,-270.86,0.000442,5]
[322278150,1712929841028,-270.86,0.000442,5]
[322278152,1712929841038,-270.86,0.000442,5]
[322278154,1712929841047,-270.86,0.000442,5]
[322278156,1712929841057,-270.86,0.000442,5]
[322278158,1712929841067,-270.86,0.000442,5]
[322278159,1712929841077,-270.86,0.000442,5]
[322278162,1712929841087,-270.86,0.000442,5]
[322278163,1712929841097,-270.86,0.000442,5]
[322278166,1712929841108,-270.86,0.000442,5]
[322278168,1712929841119,-2867.13513402,0.00044244,2]
[322278170,1712929841129,-333.29,0.00044288,15]
[322278172,1712929841140,-6926.40813717,0.00044539,2]
[322278174,1712929841150,-219.69,0.00044701,2]
[322278175,1712929841164,-1000.0,0.00044801,2]
[322278178,1712929841175,-150.91,0.00044848,2]
[322278180,1712929841185,-7000.0,0.000449,30]
[322278181,1712929841194,-6826.79437779,0.0004521,2]
[322278184,1712929841204,-729.24202231,0.0004521,2]
[322278185,1712929841215,-629.24635446,0.00045223,12]
[322278187,1712929841225,-156.35,0.00045283,2]
[322278190,1712929841236,-150.0,0.000455,8]
[322278192,1712929841246,-700.0,0.00045535,7]
[322278194,1712929841256,-1362.16740246,0.00045642,2]
[322278196,1712929841266,-1128.48617715,0.00045644,10]
[322278197,1712929841275,-1002.45772301,0.00045644,10]
[322278200,1712929841286,-986.548,0.00045697,2]
[322278202,1712929841297,-540.0,0.00045697,2]
[322278203,1712929841306,-1260.0,0.00045697,2]
[322278206,1712929841317,-500.0,0.0004577,30]
[322278207,1712929841327,-21560.44666269,0.00046,46]
[322278392,1712929843010,-1118.52332951,0.00034925,5]
[322278395,1712929843019,-333.04954943,0.00046,46]
[322278398,1712929843033,-7779.99506685,0.00046,46]
[322278405,1712929843067,-1144.82674456,0.00046,46]
[322278428,1712929843273,-785.44497192,0.00046,46]
[322278431,1712929843284,-478.6711612,0.00046,46]
[322278433,1712929843296,-67917.56584335,0.00046,46]
[322278435,1712929843306,-160.03162462,0.00046,15]
[322278437,1712929843315,-150.0,0.00046,8]
[322278439,1712929843324,-199.747105,0.00046027,14]
[322278441,1712929843333,-500.0,0.00046044,30]
[322278443,1712929843342,-500.0,0.00046317,30]
[322278445,1712929843351,-150.93,0.00046322,2]
[322278447,1712929843360,-522.72542702,0.00046332,2]
[322278449,1712929843371,-1854.29186024,0.00046332,2]
[322278453,1712929843397,-2100.0,0.00046,30]
[322278455,1712929843406,-3098.9412495,0.00046332,2]
[322278457,1712929843422,-478.6711612,0.00046332,2]
[322278460,1712929843434,-872.16467983,0.00046332,2]
[322278461,1712929843443,-729.24202231,0.00046332,2]
[322278463,1712929843452,-150.0,0.00046395,2]
[322278465,1712929843461,-150.0,0.00046397,2]
[322278467,1712929843470,-150.0,0.00046399,2]
[322278469,1712929843479,-7500.0,0.000464,2]
[322278471,1712929843488,-154.3111394,0.000464,30]
[322278474,1712929843502,-0.91809665,0.000464,30]
[322278476,1712929843511,-150.0,0.00046402,2]
[322278478,1712929843520,-150.0,0.00046404,2]
[322278480,1712929843529,-150.0,0.00046405,2]
[322278482,1712929843538,-150.0,0.00046406,2]
[322278484,1712929843548,-150.0,0.00046408,2]
[322278486,1712929843556,-634.0,0.00046411,30]
[322278488,1712929843566,-302.0,0.00046411,30]
[322278489,1712929843576,-434.0,0.00046411,30]
[322278491,1712929843586,-150.0,0.00046412,2]
[322278493,1712929843595,-150.0,0.00046419,2]
[322278495,1712929843603,-150.0,0.00046421,2]
[322278497,1712929843613,-150.0,0.00046421,2]
[322278499,1712929843622,-150.0,0.00046422,2]
[322278501,1712929843631,-150.0,0.00046424,2]
[322278503,1712929843641,-150.0,0.00046425,2]
[322278505,1712929843651,-150.0,0.00046434,2]